{"text_format":"3","workbook":"xlsx","n_sheets":2,"sheets":["Tidsplan for ansatt","Oppsett"],"not_rendered":{"defined_names":21},"read":"whole","date_system":"1900"}

{"sheet":"Tidsplan for ansatt","index":0,"n_rows":296,"n_cols":21,"rows_kept":296,"merged":[[6,1,6,9],[66,1,66,9],[126,1,126,9],[186,1,186,9],[246,1,246,9]]}
["Skiftplan for ansatte"]
[]
[null,"TOTALT:",null,{"$f":"SUM(4:4)","v":{"v":56,"d":"56.00"}}]
[null,"TIMER:",null,{"$f":"AnsattDagTimerTotalt","v":8},8,8,8,8,8,8,{"v":0,"d":"0.00"},{"v":0,"d":"0.00"},{"v":0,"d":"0.00"},{"v":0,"d":"0.00"},{"v":0,"d":"0.00"},{"v":0,"d":"0.00"},{"v":0,"d":"0.00"},{"v":0,"d":"0.00"},{"v":0,"d":"0.00"},{"v":0,"d":"0.00"},{"v":0,"d":"0.00"}]
[null,"ANSATT:",null,"Hamlin, J","Miller, B","Silva, A","Miller, B","Hansen, C","Kerr, M","Rath, A"]
[]
[null,"2012-07-16T09:00:00"]
[null,{"$f":"B7","v":41106.375},{"$nulls":5},"Ferie"]
[null,{"$f":"PeriodeVisning","v":":15"},null,"Resepsjonen",{"$nulls":3},"Ferie"]
[null,":30",null,"Resepsjonen",{"$nulls":3},"Ferie"]
[null,":45",null,"Resepsjonen","Arbeidsleder",null,"Kundeservice","Ferie"]
[null,"10:00",null,"Resepsjonen","Arbeidsleder",null,"Kundeservice","Ferie"]
[null,":15",null,"Resepsjonen","Arbeidsleder",null,"Kundeservice","Ferie"]
[null,":30",null,"Resepsjonen","Arbeidsleder",null,"Kundeservice","Ferie","Regnskap"]
[null,":45",null,"Resepsjonen","Arbeidsleder",null,"Kundeservice","Ferie","Regnskap","Vaktmester"]
[null,"11:00",null,"Resepsjonen","Arbeidsleder",null,"Kundeservice","Ferie","Regnskap","Vaktmester"]
[null,":15",null,"Resepsjonen","Arbeidsleder","Guide","Kundeservice","Ferie","Regnskap","Vaktmester"]
[null,":30",null,"Resepsjonen","Pause","Guide","Kundeservice","Ferie","Regnskap","Vaktmester"]
[null,":45",null,"Lunsj","Arbeidsleder","Guide","Kundeservice","Ferie","Regnskap","Vaktmester"]
[null,"12:00",null,"Lunsj","Arbeidsleder","Guide","Kundeservice","Ferie","Regnskap","Vaktmester"]
[null,":15",null,"Resepsjonen","Arbeidsleder","Guide","Kundeservice","Ferie","Pause","Vaktmester"]
[null,":30",null,"Resepsjonen","Arbeidsleder","Pause","Kundeservice","Ferie","Telefoner","Pause"]
[null,":45",null,"Resepsjonen","Arbeidsleder","Guide","Kundeservice","Ferie","Telefoner","Vaktmester"]
[null,"13:00",null,"Resepsjonen","Arbeidsleder","Guide","Kundeservice","Ferie","Telefoner","Vaktmester"]
[null,":15",null,"Resepsjonen","Arbeidsleder","Guide","Lunsj","Ferie","Telefoner","Vaktmester"]
[null,":30",null,null,"Arbeidsleder","Guide","Lunsj","Ferie","Telefoner","Vaktmester"]
[null,":45",null,null,"Arbeidsleder","Guide","Lunsj","Ferie","Lunsj","Vaktmester"]
[null,"14:00",null,"Kasserer","Lunsj","Guide","Lunsj","Ferie","Lunsj","Vaktmester"]
[null,":15",null,"Kasserer","Lunsj","Guide","Kundeservice","Ferie","Telefoner","Vaktmester"]
[null,":30",null,"Kasserer","Lunsj","Lunsj","Kundeservice","Ferie","Telefoner","Lunsj"]
[null,":45",null,"Kasserer","Lunsj","Lunsj","Kundeservice","Ferie","Telefoner","Lunsj"]
[null,"15:00",null,"Kasserer","Sikkerhet","Lunsj","Kundeservice","Ferie","Telefoner","Lunsj"]
[null,":15",null,"Kasserer","Sikkerhet","Lunsj","Kundeservice","Ferie","Telefoner","Lunsj"]
[null,":30",null,"Kasserer","Sikkerhet","Guide","Kundeservice","Ferie","Telefoner","Stengt"]
[null,":45",null,"Kasserer","Sikkerhet","Guide","Kundeservice","Ferie","Telefoner","Stengt"]
[null,"16:00",null,"Kasserer","Sikkerhet","Guide","Kundeservice","Ferie","Pause","Stengt"]
[null,":15",null,"Pause","Sikkerhet","Guide","Pause","Ferie","Telefoner","Stengt"]
[null,":30",null,"Kasserer","Sikkerhet","Guide","Kundeservice","Ferie","Telefoner","Stengt"]
[null,":45",null,"Kasserer","Sikkerhet","Guide","Kundeservice","Ferie","Telefoner","Stengt"]
[null,"17:00",null,"Kasserer","Sikkerhet","Guide","Kundeservice",null,"Telefoner","Stengt"]
[null,":15",null,"Kasserer","Sikkerhet","Guide","Kundeservice",null,"Telefoner","Stengt"]
[null,":30",null,"Kasserer","Sikkerhet","Guide","Kundeservice",null,"Telefoner","Stengt"]
[null,":45",null,"Kasserer","Sikkerhet","Guide","Kundeservice",null,"Telefoner","Stengt"]
[null,"18:00",null,"Kasserer","Sikkerhet","Guide","Kundeservice",null,"Telefoner","Stengt"]
[null,":15",null,"Kasserer","Sikkerhet","Guide","Kundeservice",null,"Telefoner","Stengt"]
[null,":30",null,null,"Sikkerhet","Guide","Kundeservice",null,"Telefoner","Stengt"]
[null,":45",null,null,"Sikkerhet","Pause","Kundeservice",null,"Telefoner","Pause"]
[null,"19:00",{"$nulls":3},"Guide",null,null,"Telefoner","Stengt"]
[null,":15",{"$nulls":3},"Guide",null,null,"Telefoner","Stengt"]
[null,":30",{"$nulls":3},"Guide",{"$nulls":3},"Stengt"]
[null,":45",{"$nulls":3},"Guide",{"$nulls":3},"Stengt"]
[null,"20:00",{"$nulls":3},"Guide",{"$nulls":3},"Stengt"]
[null,":15",{"$nulls":3},"Guide"]
[null,":30",{"$nulls":3},"Guide"]
[null,":45"]
[null,"21:00"]
[]
[]
[]
[]
["Ansattplan"]
[]
[null,"TOTALT:",null,{"$f":"SUM(64:64)","v":{"v":56,"d":"56.00"}}]
[null,"TIMER:",null,{"$f":"AnsattDagTimerTotalt","v":8},8,8,8,8,8,8,{"v":0,"d":"0.00"},{"v":0,"d":"0.00"},{"v":0,"d":"0.00"},{"v":0,"d":"0.00"},{"v":0,"d":"0.00"},{"v":0,"d":"0.00"},{"v":0,"d":"0.00"},{"v":0,"d":"0.00"},{"v":0,"d":"0.00"},{"v":0,"d":"0.00"},{"v":0,"d":"0.00"}]
[null,"ANSATT:",null,"Hamlin, J","Miller, B","Silva, A","Park, D","Hansen, C","Kerr, M","Rath, A"]
[]
[null,{"$f":"B7+1","v":"2012-07-17T09:00:00"}]
[null,{"$f":"B67","v":41107.375},{"$nulls":5},"Ferie"]
[null,{"$f":"PeriodeVisning","v":":15"},null,"Resepsjonen",{"$nulls":3},"Ferie"]
[null,":30",null,"Resepsjonen",{"$nulls":3},"Ferie"]
[null,":45",null,"Resepsjonen","Arbeidsleder",null,"Kundeservice","Ferie"]
[null,"01:00",null,"Resepsjonen","Arbeidsleder",null,"Kundeservice","Ferie"]
[null,":15",null,"Resepsjonen","Arbeidsleder",null,"Kundeservice","Ferie"]
[null,":30",null,"Resepsjonen","Arbeidsleder",null,"Kundeservice","Ferie","Regnskap"]
[null,":45",null,"Resepsjonen","Arbeidsleder",null,"Kundeservice","Ferie","Regnskap","Vaktmester"]
[null,"02:00",null,"Resepsjonen","Arbeidsleder",null,"Kundeservice","Ferie","Regnskap","Vaktmester"]
[null,":15",null,"Resepsjonen","Arbeidsleder","Guide","Kundeservice","Ferie","Regnskap","Vaktmester"]
[null,":30",null,"Resepsjonen","Pause","Guide","Kundeservice","Ferie","Regnskap","Vaktmester"]
[null,":45",null,"Lunsj","Arbeidsleder","Guide","Kundeservice","Ferie","Regnskap","Vaktmester"]
[null,"03:00",null,"Lunsj","Arbeidsleder","Guide","Kundeservice","Ferie","Regnskap","Vaktmester"]
[null,":15",null,"Resepsjonen","Arbeidsleder","Guide","Kundeservice","Ferie","Pause","Vaktmester"]
[null,":30",null,"Resepsjonen","Arbeidsleder","Pause","Kundeservice","Ferie","Telefoner","Pause"]
[null,":45",null,"Resepsjonen","Arbeidsleder","Guide","Kundeservice","Ferie","Telefoner","Vaktmester"]
[null,"04:00",null,"Resepsjonen","Arbeidsleder","Guide","Kundeservice","Ferie","Telefoner","Vaktmester"]
[null,":15",null,"Resepsjonen","Arbeidsleder","Guide","Lunsj","Ferie","Telefoner","Vaktmester"]
[null,":30",null,null,"Arbeidsleder","Guide","Lunsj","Ferie","Telefoner","Vaktmester"]
[null,":45",null,null,"Arbeidsleder","Guide","Lunsj","Ferie","Lunsj","Vaktmester"]
[null,"05:00",null,"Kasserer","Lunsj","Guide","Lunsj","Ferie","Lunsj","Vaktmester"]
[null,":15",null,"Kasserer","Lunsj","Guide","Kundeservice","Ferie","Telefoner","Vaktmester"]
[null,":30",null,"Kasserer","Lunsj","Lunsj","Kundeservice","Ferie","Telefoner","Lunsj"]
[null,":45",null,"Kasserer","Lunsj","Lunsj","Kundeservice","Ferie","Telefoner","Lunsj"]
[null,"06:00",null,"Kasserer","Sikkerhet","Lunsj","Kundeservice","Ferie","Telefoner","Lunsj"]
[null,":15",null,"Kasserer","Sikkerhet","Lunsj","Kundeservice","Ferie","Telefoner","Lunsj"]
[null,":30",null,"Kasserer","Sikkerhet","Guide","Kundeservice","Ferie","Telefoner","Stengt"]
[null,":45",null,"Kasserer","Sikkerhet","Guide","Kundeservice","Ferie","Telefoner","Stengt"]
[null,"07:00",null,"Kasserer","Sikkerhet","Guide","Kundeservice","Ferie","Pause","Stengt"]
[null,":15",null,"Pause","Sikkerhet","Guide","Pause","Ferie","Telefoner","Stengt"]
[null,":30",null,"Kasserer","Sikkerhet","Guide","Kundeservice","Ferie","Telefoner","Stengt"]
[null,":45",null,"Kasserer","Sikkerhet","Guide","Kundeservice","Ferie","Telefoner","Stengt"]
[null,"08:00",null,"Kasserer","Sikkerhet","Guide","Kundeservice",null,"Telefoner","Stengt"]
[null,":15",null,"Kasserer","Sikkerhet","Guide","Kundeservice",null,"Telefoner","Stengt"]
[null,":30",null,"Kasserer","Sikkerhet","Guide","Kundeservice",null,"Telefoner","Stengt"]
[null,":45",null,"Kasserer","Sikkerhet","Guide","Kundeservice",null,"Telefoner","Stengt"]
[null,"09:00",null,"Kasserer","Sikkerhet","Guide","Kundeservice",null,"Telefoner","Stengt"]
[null,":15",null,"Kasserer","Sikkerhet","Guide","Kundeservice",null,"Telefoner","Stengt"]
[null,":30",null,null,"Sikkerhet","Guide","Kundeservice",null,"Telefoner","Stengt"]
[null,":45",null,null,"Sikkerhet","Pause","Kundeservice",null,"Telefoner","Pause"]
[null,"10:00",{"$nulls":3},"Guide",null,null,"Telefoner","Stengt"]
[null,":15",{"$nulls":3},"Guide",null,null,"Telefoner","Stengt"]
[null,":30",{"$nulls":3},"Guide",{"$nulls":3},"Stengt"]
[null,":45",{"$nulls":3},"Guide",{"$nulls":3},"Stengt"]
[null,"11:00",{"$nulls":3},"Guide",{"$nulls":3},"Stengt"]
[null,":15",{"$nulls":3},"Guide"]
[null,":30",{"$nulls":3},"Guide"]
[null,":45"]
[null,"12:00"]
[]
[]
[]
[]
["Ansattplan"]
[]
[null,"TOTALT:",null,{"$f":"SUM(124:124)","v":{"v":56,"d":"56.00"}}]
[null,"TIMER:",null,{"$f":"AnsattDagTimerTotalt","v":8},8,8,8,8,8,8,{"v":0,"d":"0.00"},{"v":0,"d":"0.00"},{"v":0,"d":"0.00"},{"v":0,"d":"0.00"},{"v":0,"d":"0.00"},{"v":0,"d":"0.00"},{"v":0,"d":"0.00"},{"v":0,"d":"0.00"},{"v":0,"d":"0.00"},{"v":0,"d":"0.00"},{"v":0,"d":"0.00"}]
[null,"ANSATT:",null,"Hamlin, J","Miller, B","Silva, A","Park, D","Hansen, C","Kerr, M","Rath, A"]
[]
[null,{"$f":"B67+1","v":"2012-07-18T09:00:00"}]
[null,{"$f":"B127","v":41108.375},{"$nulls":5},"Ferie"]
[null,{"$f":"PeriodeVisning","v":":15"},null,"Resepsjonen",{"$nulls":3},"Ferie"]
[null,":30",null,"Resepsjonen",{"$nulls":3},"Ferie"]
[null,":45",null,"Resepsjonen","Arbeidsleder",null,"Kundeservice","Ferie"]
[null,"16:00",null,"Resepsjonen","Arbeidsleder",null,"Kundeservice","Ferie"]
[null,":15",null,"Resepsjonen","Arbeidsleder",null,"Kundeservice","Ferie"]
[null,":30",null,"Resepsjonen","Arbeidsleder",null,"Kundeservice","Ferie","Regnskap"]
[null,":45",null,"Resepsjonen","Arbeidsleder",null,"Kundeservice","Ferie","Regnskap","Vaktmester"]
[null,"17:00",null,"Resepsjonen","Arbeidsleder",null,"Kundeservice","Ferie","Regnskap","Vaktmester"]
[null,":15",null,"Resepsjonen","Arbeidsleder","Guide","Kundeservice","Ferie","Regnskap","Vaktmester"]
[null,":30",null,"Resepsjonen","Pause","Guide","Kundeservice","Ferie","Regnskap","Vaktmester"]
[null,":45",null,"Lunsj","Arbeidsleder","Guide","Kundeservice","Ferie","Regnskap","Vaktmester"]
[null,"18:00",null,"Lunsj","Arbeidsleder","Guide","Kundeservice","Ferie","Regnskap","Vaktmester"]
[null,":15",null,"Resepsjonen","Arbeidsleder","Guide","Kundeservice","Ferie","Pause","Vaktmester"]
[null,":30",null,"Resepsjonen","Arbeidsleder","Pause","Kundeservice","Ferie","Telefoner","Pause"]
[null,":45",null,"Resepsjonen","Arbeidsleder","Guide","Kundeservice","Ferie","Telefoner","Vaktmester"]
[null,"19:00",null,"Resepsjonen","Arbeidsleder","Guide","Kundeservice","Ferie","Telefoner","Vaktmester"]
[null,":15",null,"Resepsjonen","Arbeidsleder","Guide","Lunsj","Ferie","Telefoner","Vaktmester"]
[null,":30",null,null,"Arbeidsleder","Guide","Lunsj","Ferie","Telefoner","Vaktmester"]
[null,":45",null,null,"Arbeidsleder","Guide","Lunsj","Ferie","Lunsj","Vaktmester"]
[null,"20:00",null,"Kasserer","Lunsj","Guide","Lunsj","Ferie","Lunsj","Vaktmester"]
[null,":15",null,"Kasserer","Lunsj","Guide","Kundeservice","Ferie","Telefoner","Vaktmester"]
[null,":30",null,"Kasserer","Lunsj","Lunsj","Kundeservice","Ferie","Telefoner","Lunsj"]
[null,":45",null,"Kasserer","Lunsj","Lunsj","Kundeservice","Ferie","Telefoner","Lunsj"]
[null,"21:00",null,"Kasserer","Sikkerhet","Lunsj","Kundeservice","Ferie","Telefoner","Lunsj"]
[null,":15",null,"Kasserer","Sikkerhet","Lunsj","Kundeservice","Ferie","Telefoner","Lunsj"]
[null,":30",null,"Kasserer","Sikkerhet","Guide","Kundeservice","Ferie","Telefoner","Stengt"]
[null,":45",null,"Kasserer","Sikkerhet","Guide","Kundeservice","Ferie","Telefoner","Stengt"]
[null,"22:00",null,"Kasserer","Sikkerhet","Guide","Kundeservice","Ferie","Pause","Stengt"]
[null,":15",null,"Pause","Sikkerhet","Guide","Pause","Ferie","Telefoner","Stengt"]
[null,":30",null,"Kasserer","Sikkerhet","Guide","Kundeservice","Ferie","Telefoner","Stengt"]
[null,":45",null,"Kasserer","Sikkerhet","Guide","Kundeservice","Ferie","Telefoner","Stengt"]
[null,"23:00",null,"Kasserer","Sikkerhet","Guide","Kundeservice",null,"Telefoner","Stengt"]
[null,":15",null,"Kasserer","Sikkerhet","Guide","Kundeservice",null,"Telefoner","Stengt"]
[null,":30",null,"Kasserer","Sikkerhet","Guide","Kundeservice",null,"Telefoner","Stengt"]
[null,":45",null,"Kasserer","Sikkerhet","Guide","Kundeservice",null,"Telefoner","Stengt"]
[null,"00:00",null,"Kasserer","Sikkerhet","Guide","Kundeservice",null,"Telefoner","Stengt"]
[null,":15",null,"Kasserer","Sikkerhet","Guide","Kundeservice",null,"Telefoner","Stengt"]
[null,":30",null,null,"Sikkerhet","Guide","Kundeservice",null,"Telefoner","Stengt"]
[null,":45",null,null,"Sikkerhet","Pause","Kundeservice",null,"Telefoner","Pause"]
[null,"01:00",{"$nulls":3},"Guide",null,null,"Telefoner","Stengt"]
[null,":15",{"$nulls":3},"Guide",null,null,"Telefoner","Stengt"]
[null,":30",{"$nulls":3},"Guide",{"$nulls":3},"Stengt"]
[null,":45",{"$nulls":3},"Guide",{"$nulls":3},"Stengt"]
[null,"02:00",{"$nulls":3},"Guide",{"$nulls":3},"Stengt"]
[null,":15",{"$nulls":3},"Guide"]
[null,":30",{"$nulls":3},"Guide"]
[null,":45"]
[null,"03:00"]
[]
[]
[]
[]
["Ansattplan"]
[]
[null,"TOTALT:",null,{"$f":"SUM(184:184)","v":{"v":56,"d":"56.00"}}]
[null,"TIMER:",null,{"$f":"AnsattDagTimerTotalt","v":8},8,8,8,8,8,8,{"v":0,"d":"0.00"},{"v":0,"d":"0.00"},{"v":0,"d":"0.00"},{"v":0,"d":"0.00"},{"v":0,"d":"0.00"},{"v":0,"d":"0.00"},{"v":0,"d":"0.00"},{"v":0,"d":"0.00"},{"v":0,"d":"0.00"},{"v":0,"d":"0.00"},{"v":0,"d":"0.00"}]
[null,"ANSATT:",null,"Hamlin, J","Miller, B","Silva, A","Park, D","Hansen, C","Kerr, M","Rath, A"]
[]
[null,{"$f":"B127+1","v":"2012-07-19T09:00:00"}]
[null,{"$f":"B187","v":41109.375},{"$nulls":5},"Ferie"]
[null,{"$f":"PeriodeVisning","v":":15"},null,"Resepsjonen",{"$nulls":3},"Ferie"]
[null,":30",null,"Resepsjonen",{"$nulls":3},"Ferie"]
[null,":45",null,"Resepsjonen","Arbeidsleder",null,"Kundeservice","Ferie"]
[null,"07:00",null,"Resepsjonen","Arbeidsleder",null,"Kundeservice","Ferie"]
[null,":15",null,"Resepsjonen","Arbeidsleder",null,"Kundeservice","Ferie"]
[null,":30",null,"Resepsjonen","Arbeidsleder",null,"Kundeservice","Ferie","Regnskap"]
[null,":45",null,"Resepsjonen","Arbeidsleder",null,"Kundeservice","Ferie","Regnskap","Vaktmester"]
[null,"08:00",null,"Resepsjonen","Arbeidsleder",null,"Kundeservice","Ferie","Regnskap","Vaktmester"]
[null,":15",null,"Resepsjonen","Arbeidsleder","Guide","Kundeservice","Ferie","Regnskap","Vaktmester"]
[null,":30",null,"Resepsjonen","Pause","Guide","Kundeservice","Ferie","Regnskap","Vaktmester"]
[null,":45",null,"Lunsj","Arbeidsleder","Guide","Kundeservice","Ferie","Regnskap","Vaktmester"]
[null,"09:00",null,"Lunsj","Arbeidsleder","Guide","Kundeservice","Ferie","Regnskap","Vaktmester"]
[null,":15",null,"Resepsjonen","Arbeidsleder","Guide","Kundeservice","Ferie","Pause","Vaktmester"]
[null,":30",null,"Resepsjonen","Arbeidsleder","Pause","Kundeservice","Ferie","Telefoner","Pause"]
[null,":45",null,"Resepsjonen","Arbeidsleder","Guide","Kundeservice","Ferie","Telefoner","Vaktmester"]
[null,"10:00",null,"Resepsjonen","Arbeidsleder","Guide","Kundeservice","Ferie","Telefoner","Vaktmester"]
[null,":15",null,"Resepsjonen","Arbeidsleder","Guide","Lunsj","Ferie","Telefoner","Vaktmester"]
[null,":30",null,null,"Arbeidsleder","Guide","Lunsj","Ferie","Telefoner","Vaktmester"]
[null,":45",null,null,"Arbeidsleder","Guide","Lunsj","Ferie","Lunsj","Vaktmester"]
[null,"11:00",null,"Kasserer","Lunsj","Guide","Lunsj","Ferie","Lunsj","Vaktmester"]
[null,":15",null,"Kasserer","Lunsj","Guide","Kundeservice","Ferie","Telefoner","Vaktmester"]
[null,":30",null,"Kasserer","Lunsj","Lunsj","Kundeservice","Ferie","Telefoner","Lunsj"]
[null,":45",null,"Kasserer","Lunsj","Lunsj","Kundeservice","Ferie","Telefoner","Lunsj"]
[null,"12:00",null,"Kasserer","Sikkerhet","Lunsj","Kundeservice","Ferie","Telefoner","Lunsj"]
[null,":15",null,"Kasserer","Sikkerhet","Lunsj","Kundeservice","Ferie","Telefoner","Lunsj"]
[null,":30",null,"Kasserer","Sikkerhet","Guide","Kundeservice","Ferie","Telefoner","Stengt"]
[null,":45",null,"Kasserer","Sikkerhet","Guide","Kundeservice","Ferie","Telefoner","Stengt"]
[null,"13:00",null,"Kasserer","Sikkerhet","Guide","Kundeservice","Ferie","Pause","Stengt"]
[null,":15",null,"Pause","Sikkerhet","Guide","Pause","Ferie","Telefoner","Stengt"]
[null,":30",null,"Kasserer","Sikkerhet","Guide","Kundeservice","Ferie","Telefoner","Stengt"]
[null,":45",null,"Kasserer","Sikkerhet","Guide","Kundeservice","Ferie","Telefoner","Stengt"]
[null,"14:00",null,"Kasserer","Sikkerhet","Guide","Kundeservice",null,"Telefoner","Stengt"]
[null,":15",null,"Kasserer","Sikkerhet","Guide","Kundeservice",null,"Telefoner","Stengt"]
[null,":30",null,"Kasserer","Sikkerhet","Guide","Kundeservice",null,"Telefoner","Stengt"]
[null,":45",null,"Kasserer","Sikkerhet","Guide","Kundeservice",null,"Telefoner","Stengt"]
[null,"15:00",null,"Kasserer","Sikkerhet","Guide","Kundeservice",null,"Telefoner","Stengt"]
[null,":15",null,"Kasserer","Sikkerhet","Guide","Kundeservice",null,"Telefoner","Stengt"]
[null,":30",null,null,"Sikkerhet","Guide","Kundeservice",null,"Telefoner","Stengt"]
[null,":45",null,null,"Sikkerhet","Pause","Kundeservice",null,"Telefoner","Pause"]
[null,"16:00",{"$nulls":3},"Guide",null,null,"Telefoner","Stengt"]
[null,":15",{"$nulls":3},"Guide",null,null,"Telefoner","Stengt"]
[null,":30",{"$nulls":3},"Guide",{"$nulls":3},"Stengt"]
[null,":45",{"$nulls":3},"Guide",{"$nulls":3},"Stengt"]
[null,"17:00",{"$nulls":3},"Guide",{"$nulls":3},"Stengt"]
[null,":15",{"$nulls":3},"Guide"]
[null,":30",{"$nulls":3},"Guide"]
[null,":45"]
[null,"18:00"]
[]
[]
[]
[]
["Ansattplan"]
[]
[null,"TOTALT:",null,{"$f":"SUM(244:244)","v":{"v":56,"d":"56.00"}}]
[null,"TIMER:",null,{"$f":"AnsattDagTimerTotalt","v":8},8,8,8,8,8,8,{"v":0,"d":"0.00"},{"v":0,"d":"0.00"},{"v":0,"d":"0.00"},{"v":0,"d":"0.00"},{"v":0,"d":"0.00"},{"v":0,"d":"0.00"},{"v":0,"d":"0.00"},{"v":0,"d":"0.00"},{"v":0,"d":"0.00"},{"v":0,"d":"0.00"},{"v":0,"d":"0.00"}]
[null,"ANSATT:",null,"Hamlin, J","Miller, B","Silva, A","Park, D","Hansen, C","Kerr, M","Rath, A"]
[]
[null,{"$f":"B187+1","v":"2012-07-20T09:00:00"}]
[null,{"$f":"B247","v":41110.375},{"$nulls":5},"Ferie"]
[null,{"$f":"PeriodeVisning","v":":15"},null,"Resepsjonen",{"$nulls":3},"Ferie"]
[null,":30",null,"Resepsjonen",{"$nulls":3},"Ferie"]
[null,":45",null,"Resepsjonen","Arbeidsleder",null,"Kundeservice","Ferie"]
[null,"22:00",null,"Resepsjonen","Arbeidsleder",null,"Kundeservice","Ferie"]
[null,":15",null,"Resepsjonen","Arbeidsleder",null,"Kundeservice","Ferie"]
[null,":30",null,"Resepsjonen","Arbeidsleder",null,"Kundeservice","Ferie","Regnskap"]
[null,":45",null,"Resepsjonen","Arbeidsleder",null,"Kundeservice","Ferie","Regnskap","Vaktmester"]
[null,"23:00",null,"Resepsjonen","Arbeidsleder",null,"Kundeservice","Ferie","Regnskap","Vaktmester"]
[null,":15",null,"Resepsjonen","Arbeidsleder","Guide","Kundeservice","Ferie","Regnskap","Vaktmester"]
[null,":30",null,"Resepsjonen","Pause","Guide","Kundeservice","Ferie","Regnskap","Vaktmester"]
[null,":45",null,"Lunsj","Arbeidsleder","Guide","Kundeservice","Ferie","Regnskap","Vaktmester"]
[null,"00:00",null,"Lunsj","Arbeidsleder","Guide","Kundeservice","Ferie","Regnskap","Vaktmester"]
[null,":15",null,"Resepsjonen","Arbeidsleder","Guide","Kundeservice","Ferie","Pause","Vaktmester"]
[null,":30",null,"Resepsjonen","Arbeidsleder","Pause","Kundeservice","Ferie","Telefoner","Pause"]
[null,":45",null,"Resepsjonen","Arbeidsleder","Guide","Kundeservice","Ferie","Telefoner","Vaktmester"]
[null,"01:00",null,"Resepsjonen","Arbeidsleder","Guide","Kundeservice","Ferie","Telefoner","Vaktmester"]
[null,":15",null,"Resepsjonen","Arbeidsleder","Guide","Lunsj","Ferie","Telefoner","Vaktmester"]
[null,":30",null,null,"Arbeidsleder","Guide","Lunsj","Ferie","Telefoner","Vaktmester"]
[null,":45",null,null,"Arbeidsleder","Guide","Lunsj","Ferie","Lunsj","Vaktmester"]
[null,"02:00",null,"Kasserer","Lunsj","Guide","Lunsj","Ferie","Lunsj","Vaktmester"]
[null,":15",null,"Kasserer","Lunsj","Guide","Kundeservice","Ferie","Telefoner","Vaktmester"]
[null,":30",null,"Kasserer","Lunsj","Lunsj","Kundeservice","Ferie","Telefoner","Lunsj"]
[null,":45",null,"Kasserer","Lunsj","Lunsj","Kundeservice","Ferie","Telefoner","Lunsj"]
[null,"03:00",null,"Kasserer","Sikkerhet","Lunsj","Kundeservice","Ferie","Telefoner","Lunsj"]
[null,":15",null,"Kasserer","Sikkerhet","Lunsj","Kundeservice","Ferie","Telefoner","Lunsj"]
[null,":30",null,"Kasserer","Sikkerhet","Guide","Kundeservice","Ferie","Telefoner","Stengt"]
[null,":45",null,"Kasserer","Sikkerhet","Guide","Kundeservice","Ferie","Telefoner","Stengt"]
[null,"04:00",null,"Kasserer","Sikkerhet","Guide","Kundeservice","Ferie","Pause","Stengt"]
[null,":15",null,"Pause","Sikkerhet","Guide","Pause","Ferie","Telefoner","Stengt"]
[null,":30",null,"Kasserer","Sikkerhet","Guide","Kundeservice","Ferie","Telefoner","Stengt"]
[null,":45",null,"Kasserer","Sikkerhet","Guide","Kundeservice","Ferie","Telefoner","Stengt"]
[null,"05:00",null,"Kasserer","Sikkerhet","Guide","Kundeservice",null,"Telefoner","Stengt"]
[null,":15",null,"Kasserer","Sikkerhet","Guide","Kundeservice",null,"Telefoner","Stengt"]
[null,":30",null,"Kasserer","Sikkerhet","Guide","Kundeservice",null,"Telefoner","Stengt"]
[null,":45",null,"Kasserer","Sikkerhet","Guide","Kundeservice",null,"Telefoner","Stengt"]
[null,"06:00",null,"Kasserer","Sikkerhet","Guide","Kundeservice",null,"Telefoner","Stengt"]
[null,":15",null,"Kasserer","Sikkerhet","Guide","Kundeservice",null,"Telefoner","Stengt"]
[null,":30",null,null,"Sikkerhet","Guide","Kundeservice",null,"Telefoner","Stengt"]
[null,":45",null,null,"Sikkerhet","Pause","Kundeservice",null,"Telefoner","Pause"]
[null,"07:00",{"$nulls":3},"Guide",null,null,"Telefoner","Stengt"]
[null,":15",{"$nulls":3},"Guide",null,null,"Telefoner","Stengt"]
[null,":30",{"$nulls":3},"Guide",{"$nulls":3},"Stengt"]
[null,":45",{"$nulls":3},"Guide",{"$nulls":3},"Stengt"]
[null,"08:00",{"$nulls":3},"Guide",{"$nulls":3},"Stengt"]
[null,":15",{"$nulls":3},"Guide"]
[null,":30",{"$nulls":3},"Guide"]
[null,":45"]
[null,"09:00"]

{"sheet":"Oppsett","index":1,"n_rows":26,"n_cols":7,"rows_kept":26}
[null,"Oppsett"]
[]
[]
[null,"ØKNINGER PER REGISTRERT TIME",4]
[]
[]
[]
[]
[]
[null,"Ansatte",null,"Stilling/Fri","Farge","Betalt","Hele dagen"]
[null,"Hamlin, J",null,"Lunsj",1,false,false]
[null,"Hansen, C",null,"Pause",1,false,false]
[null,"Kerr, M",null,"Borte",1,false,true]
[null,"Levin, D",null,"Syk",1,false,true]
[null,"Miller, B",null,"Personlig dag",1,true,true]
[null,"Park, D",null,"Ferie",1,true,true]
[null,"Rath, A",null,"Resepsjonen",2,true,false]
[null,"Silva, A",null,"Kasserer",3,true,false]
[{"$nulls":3},"Arbeidsleder",4,true,false]
[{"$nulls":3},"Guide",5,true,false]
[{"$nulls":3},"Kundeservice",6,true,false]
[{"$nulls":3},"Telefoner",7,true,false]
[{"$nulls":3},"Sikkerhet",8,true,false]
[{"$nulls":3},"Vaktmester",9,true,false]
[{"$nulls":3},"Regnskap",10,true,false]
[{"$nulls":3},"Stengt",11,true,false]